[Event "*** SCC Grand Prix: Titled Tuesday Blitz"]
[Site "Chess.com"]
[Date "2020.07.21"]
[Round "1"]
[White "szachuspl"]
[Black "FMOlexandrProhorov"]
[Result "1-0"]
[WhiteElo "2536"]
[BlackElo "2138"]
[TimeControl "180+1"]
[EndTime "10:06:53 PDT"]
[Termination "szachuspl won on time"]

1. d4 {[%clk 0:02:56.6]} 1... g6 {[%clk 0:02:56.6]} 2. c4 {[%clk 0:02:52.6]}
2... Bg7 {[%clk 0:02:53.3]} 3. Nc3 {[%clk 0:02:51.4]} 3... c5 {[%clk 0:02:52.6]}
4. d5 {[%clk 0:02:49.7]} 4... Bxc3+ {[%clk 0:02:51.7]} 5. bxc3 {[%clk
0:02:49.3]} 5... f5 {[%clk 0:02:51.1]} 6. f3 {[%clk 0:02:45.7]} 6... Qa5 {[%clk
0:02:49.2]} 7. Bd2 {[%clk 0:02:44.3]} 7... Nf6 {[%clk 0:02:48.4]} 8. Qc2 {[%clk
0:02:40.5]} 8... d6 {[%clk 0:02:46]} 9. e4 {[%clk 0:02:37.2]} 9... fxe4 {[%clk
0:02:45.3]} 10. fxe4 {[%clk 0:02:37]} 10... Nbd7 {[%clk 0:02:35.1]} 11. Nf3
{[%clk 0:02:35.1]} 11... Nb6 {[%clk 0:02:16]} 12. Bd3 {[%clk 0:02:28.5]} 12...
Bd7 {[%clk 0:02:08]} 13. O-O {[%clk 0:02:26.5]} 13... O-O-O {[%clk 0:01:59.1]}
14. e5 {[%clk 0:02:26.8]} 14... Nh5 {[%clk 0:01:27.5]} 15. e6 {[%clk 0:02:18]}
15... Ba4 {[%clk 0:01:25.5]} 16. Qb2 {[%clk 0:02:15.6]} 16... Qa6 {[%clk
0:01:21.8]} 17. Rab1 {[%clk 0:02:15.5]} 17... Kc7 {[%clk 0:01:14.6]} 18. g4
{[%clk 0:02:10.3]} 18... Nf6 {[%clk 0:01:12.3]} 19. Ne1 {[%clk 0:01:46.1]} 19...
Nxg4 {[%clk 0:01:02.1]} 20. Rf7 {[%clk 0:01:45]} 20... Rde8 {[%clk 0:00:59.9]}
21. Bg5 {[%clk 0:01:39.4]} 21... Nc8 {[%clk 0:00:51.7]} 22. h3 {[%clk
0:01:35.6]} 22... Ne5 {[%clk 0:00:50.3]} 23. Qe2 {[%clk 0:01:24.3]} 23... Nxf7
{[%clk 0:00:20.2]} 24. exf7 {[%clk 0:01:24.3]} 24... Ref8 {[%clk 0:00:20.6]} 25.
Qf3 {[%clk 0:01:19.3]} 25... Kb8 {[%clk 0:00:17.9]} 26. Ng2 {[%clk 0:01:15.3]}
26... Bd7 {[%clk 0:00:17.2]} 27. Bh6 {[%clk 0:01:13.3]} 27... Qxa2 {[%clk
0:00:15.6]} 28. Bg7 {[%clk 0:01:09.4]} 28... Rxf7 {[%clk 0:00:10.6]} 29. Qxf7
{[%clk 0:01:08.1]} 29... Rd8 {[%clk 0:00:09.5]} 30. Qf2 {[%clk 0:01:06]} 30...
Qa3 {[%clk 0:00:05.6]} 31. h4 {[%clk 0:01:01]} 31... Nb6 {[%clk 0:00:05.4]} 32.
Qb2 {[%clk 0:00:58.8]} 32... Qa5 {[%clk 0:00:04.6]} 33. Bh6 {[%clk 0:00:56.2]}
33... Bc8 {[%clk 0:00:04.6]} 34. Bg5 {[%clk 0:00:56]} 34... Re8 {[%clk
0:00:04.3]} 35. Nf4 {[%clk 0:00:54.9]} 35... Na4 {[%clk 0:00:04.4]} 36. Qa1
{[%clk 0:00:43.2]} 36... Qxc3 {[%clk 0:00:03.4]} 37. Qxc3 {[%clk 0:00:42.9]}
37... Nxc3 {[%clk 0:00:04.3]} 38. Re1 {[%clk 0:00:41.1]} 1-0

[Event "*** SCC Grand Prix: Titled Tuesday Blitz"]
[Site "Chess.com"]
[Date "2020.07.21"]
[Round "1"]
[White "OnePeculiarConundrum"]
[Black "GiantThresher"]
[Result "1-0"]
[WhiteElo "2336"]
[BlackElo "2575"]
[TimeControl "180+1"]
[EndTime "10:06:54 PDT"]
[Termination "OnePeculiarConundrum won by checkmate"]

1. e4 {[%clk 0:03:00.1]} 1... e6 {[%clk 0:02:51.6]} 2. d4 {[%clk 0:02:57.5]}
2... d5 {[%clk 0:02:51.9]} 3. e5 {[%clk 0:02:57.4]} 3... c5 {[%clk 0:02:51.5]}
4. c3 {[%clk 0:02:57.3]} 4... Nc6 {[%clk 0:02:52.4]} 5. Nf3 {[%clk 0:02:56.7]}
5... Qb6 {[%clk 0:02:53.1]} 6. a3 {[%clk 0:02:55.4]} 6... Nh6 {[%clk 0:02:53]}
7. b4 {[%clk 0:02:54]} 7... cxd4 {[%clk 0:02:52.5]} 8. Bxh6 {[%clk 0:02:54.2]}
8... gxh6 {[%clk 0:02:53.4]} 9. cxd4 {[%clk 0:02:54.2]} 9... Bd7 {[%clk
0:02:40.1]} 10. h3 {[%clk 0:02:36.1]} 10... Rg8 {[%clk 0:02:19.4]} 11. g3 {[%clk
0:02:31.4]} 11... a5 {[%clk 0:01:55.8]} 12. b5 {[%clk 0:02:28.2]} 12... Na7
{[%clk 0:01:55.9]} 13. a4 {[%clk 0:02:28]} 13... Bb4+ {[%clk 0:01:54.7]} 14.
Nbd2 {[%clk 0:02:26.9]} 14... Rc8 {[%clk 0:01:53.4]} 15. Rc1 {[%clk 0:02:02.4]}
15... Ke7 {[%clk 0:01:43.3]} 16. Be2 {[%clk 0:01:50.1]} 16... Rxc1 {[%clk
0:01:39.6]} 17. Qxc1 {[%clk 0:01:49.7]} 17... Rc8 {[%clk 0:01:40.5]} 18. Qb1
{[%clk 0:01:46.3]} 18... Bc3 {[%clk 0:01:16.7]} 19. Qd3 {[%clk 0:01:41.7]} 19...
Rc4 {[%clk 0:01:03]} 20. O-O {[%clk 0:01:34.9]} 20... Bxd2 {[%clk 0:01:01.8]}
21. Qxd2 {[%clk 0:01:32.5]} 21... Rxa4 {[%clk 0:01:01.8]} 22. Qxh6 {[%clk
0:01:32.3]} 22... Bxb5 {[%clk 0:01:01.8]} 23. Qf6+ {[%clk 0:01:24.1]} 23... Ke8
{[%clk 0:01:01.5]} 24. Ng5 {[%clk 0:00:57.4]} 24... Qc7 {[%clk 0:00:59.5]} 25.
Bxb5+ {[%clk 0:00:53.5]} 25... Nxb5 {[%clk 0:00:58.8]} 26. Qh8+ {[%clk
0:00:53.8]} 26... Ke7 {[%clk 0:00:59]} 27. Qf6+ {[%clk 0:00:53]} 27... Ke8
{[%clk 0:00:59.2]} 28. Qh8+ {[%clk 0:00:51.7]} 28... Kd7 {[%clk 0:00:52]} 29.
Qxh7 {[%clk 0:00:51.3]} 29... Nxd4 {[%clk 0:00:51.4]} 30. Qxf7+ {[%clk
0:00:48.6]} 30... Kc6 {[%clk 0:00:51.5]} 31. Qf6 {[%clk 0:00:43.3]} 31... Qd7
{[%clk 0:00:36.4]} 32. h4 {[%clk 0:00:43.2]} 32... Ne2+ {[%clk 0:00:20.8]} 33.
Kg2 {[%clk 0:00:43]} 33... Nc3 {[%clk 0:00:21.7]} 34. h5 {[%clk 0:00:42.4]}
34... Ne4 {[%clk 0:00:20.9]} 35. Nxe4 {[%clk 0:00:42.4]} 35... Rxe4 {[%clk
0:00:21]} 36. Rc1+ {[%clk 0:00:43]} 36... Rc4 {[%clk 0:00:20.8]} 37. Rb1 {[%clk
0:00:38.4]} 37... d4 {[%clk 0:00:19.9]} 38. h6 {[%clk 0:00:35.8]} 38... d3
{[%clk 0:00:20.4]} 39. h7 {[%clk 0:00:35.2]} 39... Qxh7 {[%clk 0:00:13.4]} 40.
Qxe6+ {[%clk 0:00:32.3]} 40... Kc5 {[%clk 0:00:14.3]} 41. Qd6# {[%clk 0:00:32]}
1-0

[Event "*** SCC Grand Prix: Titled Tuesday Blitz"]
[Site "Chess.com"]
[Date "2020.07.21"]
[Round "1"]
[White "NotFischer"]
[Black "AlexOstrovskiy"]
[Result "0-1"]
[WhiteElo "2258"]
[BlackElo "2602"]
[TimeControl "180+1"]
[EndTime "10:06:54 PDT"]
[Termination "AlexOstrovskiy won by resignation"]

1. e4 {[%clk 0:02:59.3]} 1... c6 {[%clk 0:02:59.5]} 2. d4 {[%clk 0:02:58.2]}
2... d5 {[%clk 0:03:00.4]} 3. exd5 {[%clk 0:02:57.9]} 3... cxd5 {[%clk
0:03:00.3]} 4. Bd3 {[%clk 0:02:57.7]} 4... Nc6 {[%clk 0:02:58.5]} 5. c3 {[%clk
0:02:57.5]} 5... Qc7 {[%clk 0:02:58.8]} 6. Ne2 {[%clk 0:02:56.3]} 6... Bg4
{[%clk 0:02:57.4]} 7. f3 {[%clk 0:02:55.7]} 7... Bd7 {[%clk 0:02:56.8]} 8. Bf4
{[%clk 0:02:52.5]} 8... e5 {[%clk 0:02:57.4]} 9. dxe5 {[%clk 0:02:53.2]} 9...
Nxe5 {[%clk 0:02:58]} 10. Bc2 {[%clk 0:02:51]} 10... Nf6 {[%clk 0:02:57]} 11.
Nd2 {[%clk 0:02:36.5]} 11... Bd6 {[%clk 0:02:55.9]} 12. O-O {[%clk 0:02:17.3]}
12... O-O {[%clk 0:02:55.6]} 13. Nb3 {[%clk 0:02:10.4]} 13... Rfe8 {[%clk
0:02:47.6]} 14. Nbd4 {[%clk 0:02:01.3]} 14... Nc4 {[%clk 0:02:47.5]} 15. Bxd6
{[%clk 0:01:35.5]} 15... Qxd6 {[%clk 0:02:48.4]} 16. Qc1 {[%clk 0:01:18.7]}
16... b5 {[%clk 0:02:47.7]} 17. Ng3 {[%clk 0:01:10.4]} 17... a5 {[%clk
0:02:41.1]} 18. Re1 {[%clk 0:00:51.3]} 18... b4 {[%clk 0:02:31.4]} 19. b3 {[%clk
0:00:38.1]} 19... Ne5 {[%clk 0:02:21]} 20. cxb4 {[%clk 0:00:31.9]} 20... axb4
{[%clk 0:02:18.7]} 21. Qd2 {[%clk 0:00:31.4]} 21... Qb6 {[%clk 0:02:07.9]} 22.
Kh1 {[%clk 0:00:29.9]} 22... Ng6 {[%clk 0:01:48.8]} 23. Bf5 {[%clk 0:00:28.6]}
23... Nf8 {[%clk 0:00:32.4]} 24. Rxe8 {[%clk 0:00:18.2]} 24... Rxe8 {[%clk
0:00:30.1]} 25. Rd1 {[%clk 0:00:13.4]} 25... g6 {[%clk 0:00:24.9]} 26. Bxd7
{[%clk 0:00:12.6]} 26... N8xd7 {[%clk 0:00:25.8]} 27. h3 {[%clk 0:00:12.2]}
27... Re5 {[%clk 0:00:18.9]} 28. Nc2 {[%clk 0:00:12.3]} 28... Kg7 {[%clk
0:00:15]} 29. Qxb4 {[%clk 0:00:11.1]} 29... Qf2 {[%clk 0:00:14.1]} 30. Nd4
{[%clk 0:00:06.4]} 30... Qxg3 {[%clk 0:00:13.5]} 31. Qd6 {[%clk 0:00:06.2]}
31... Re1+ {[%clk 0:00:13.3]} 0-1

[Event "*** SCC Grand Prix: Titled Tuesday Blitz"]
[Site "Chess.com"]
[Date "2020.07.21"]
[Round "1"]
[White "enkhtuul"]
[Black "INDIAN-ELEPHANT"]
[Result "1/2-1/2"]
[WhiteElo "2389"]
[BlackElo "2741"]
[TimeControl "180+1"]
[EndTime "10:06:55 PDT"]
[Termination "Game drawn by agreement"]

1. e4 {[%clk 0:02:33.8]} 1... e5 {[%clk 0:02:58.3]} 2. Nf3 {[%clk 0:02:33.8]}
2... Nc6 {[%clk 0:02:58.3]} 3. c3 {[%clk 0:02:34]} 3... Nf6 {[%clk 0:02:58]} 4.
d4 {[%clk 0:02:33.8]} 4... Nxe4 {[%clk 0:02:53.6]} 5. d5 {[%clk 0:02:33.4]} 5...
Ne7 {[%clk 0:02:53.3]} 6. Nxe5 {[%clk 0:02:33.5]} 6... Ng6 {[%clk 0:02:53.1]} 7.
Qe2 {[%clk 0:02:19.3]} 7... Qe7 {[%clk 0:02:48.1]} 8. Qxe4 {[%clk 0:02:10.2]}
8... Qxe5 {[%clk 0:02:45.9]} 9. Qxe5+ {[%clk 0:02:10.3]} 9... Nxe5 {[%clk
0:02:46.8]} 10. f4 {[%clk 0:02:10.5]} 10... Ng6 {[%clk 0:02:46.2]} 11. Bd3
{[%clk 0:02:10.5]} 11... Bc5 {[%clk 0:02:44.3]} 12. b4 {[%clk 0:02:08.6]} 12...
Bb6 {[%clk 0:02:42.4]} 13. Na3 {[%clk 0:02:07.8]} 13... d6 {[%clk 0:02:40.1]}
14. Nc4 {[%clk 0:02:07.4]} 14... Ne7 {[%clk 0:02:33.4]} 15. a4 {[%clk
0:02:06.2]} 15... a6 {[%clk 0:02:27]} 16. Nxb6 {[%clk 0:02:05.3]} 16... cxb6
{[%clk 0:02:27.9]} 17. Be3 {[%clk 0:02:04.6]} 17... Nxd5 {[%clk 0:02:27.6]} 18.
Bd4 {[%clk 0:02:00.7]} 18... Nxf4 {[%clk 0:02:25.2]} 19. Bf1 {[%clk 0:01:57.3]}
19... O-O {[%clk 0:02:23.4]} 20. Bxb6 {[%clk 0:01:53.5]} 20... Re8+ {[%clk
0:02:23.1]} 21. Kd2 {[%clk 0:01:53.5]} 21... Bg4 {[%clk 0:02:21.5]} 22. h3
{[%clk 0:01:50.8]} 22... Be2 {[%clk 0:02:19.3]} 23. g3 {[%clk 0:01:30]} 23...
Bxf1 {[%clk 0:02:07.8]} 24. gxf4 {[%clk 0:01:25.9]} 24... Bc4 {[%clk 0:02:06.4]}
25. Rae1 {[%clk 0:01:24.9]} 25... f6 {[%clk 0:02:03.3]} 26. Rhg1 {[%clk
0:01:23.9]} 26... Kf7 {[%clk 0:02:02.6]} 27. a5 {[%clk 0:01:22.8]} 27... Rac8
{[%clk 0:01:58.7]} 28. Bd4 {[%clk 0:01:22.1]} 28... Bb5 {[%clk 0:01:55.6]} 29.
h4 {[%clk 0:01:19.3]} 29... h5 {[%clk 0:01:54.8]} 30. Re3 {[%clk 0:01:17.1]}
30... Rxe3 {[%clk 0:01:54.3]} 31. Bxe3 {[%clk 0:01:18]} 31... Re8 {[%clk
0:01:54.9]} 32. Re1 {[%clk 0:01:14]} 32... Bc6 {[%clk 0:01:51.6]} 33. Bd4 {[%clk
0:01:13.5]} 33... Be4 {[%clk 0:01:52.5]} 34. Re3 {[%clk 0:01:10.7]} 34... g6
{[%clk 0:01:52]} 35. Rg3 {[%clk 0:01:09.7]} 35... Bf5 {[%clk 0:01:50.5]} 36. Re3
{[%clk 0:01:09.1]} 36... Rc8 {[%clk 0:01:50.6]} 37. Rg3 {[%clk 0:01:05.7]} 37...
Be6 {[%clk 0:01:50.1]} 38. Re3 {[%clk 0:01:04.7]} 38... Rg8 {[%clk 0:01:47.7]}
39. Rg3 {[%clk 0:01:04.4]} 39... Bg4 {[%clk 0:01:47.9]} 40. Be3 {[%clk
0:01:03.1]} 40... Re8 {[%clk 0:01:47]} 41. Kd3 {[%clk 0:01:01.8]} 41... Ke6
{[%clk 0:01:45.3]} 42. Bd2 {[%clk 0:00:55.9]} 42... Kf5 {[%clk 0:01:45.3]} 43.
Re3 {[%clk 0:00:55.8]} 43... Rxe3+ {[%clk 0:01:42.7]} 44. Kxe3 {[%clk 0:00:56]}
44... Bd1 {[%clk 0:01:43.6]} 45. Be1 {[%clk 0:00:56]} 45... Kg4 {[%clk
0:01:43.5]} 46. Ke4 {[%clk 0:00:50.6]} 46... Bc2+ {[%clk 0:01:43.2]} 47. Ke3
{[%clk 0:00:44.4]} 47... d5 {[%clk 0:01:43.3]} 48. Bf2 {[%clk 0:00:42.7]} 48...
Bb3 {[%clk 0:01:41.9]} 49. Be1 {[%clk 0:00:42.1]} 49... Bc4 {[%clk 0:01:42.1]}
50. Bf2 {[%clk 0:00:42.2]} 50... Kh3 {[%clk 0:01:41.5]} 51. Be1 {[%clk 0:00:42]}
51... Kg2 {[%clk 0:01:41.9]} 52. Bf2 {[%clk 0:00:42.3]} 52... Ba2 {[%clk
0:01:39.1]} 53. Be1 {[%clk 0:00:42.3]} 53... Bb1 {[%clk 0:01:38.3]} 54. Bf2
{[%clk 0:00:40.5]} 54... Kh3 {[%clk 0:01:38.4]} 55. Be1 {[%clk 0:00:40.4]} 55...
Kg4 {[%clk 0:01:38.8]} 56. Bf2 {[%clk 0:00:40.2]} 56... g5 {[%clk 0:01:39.5]}
57. fxg5 {[%clk 0:00:40.5]} 57... fxg5 {[%clk 0:01:40.4]} 58. hxg5 {[%clk
0:00:40.8]} 58... Kxg5 {[%clk 0:01:41.3]} 59. Kf3 {[%clk 0:00:39.5]} 59... Be4+
{[%clk 0:01:40.9]} 60. Kg3 {[%clk 0:00:39.3]} 60... h4+ {[%clk 0:01:41]} 61. Kh3
{[%clk 0:00:39.6]} 61... Bf5+ {[%clk 0:01:41.5]} 62. Kh2 {[%clk 0:00:38.4]}
62... Kg4 {[%clk 0:01:42.4]} 63. Bd4 {[%clk 0:00:38.4]} 63... h3 {[%clk
0:01:43.3]} 64. Be5 {[%clk 0:00:38.3]} 64... Kf3 {[%clk 0:01:44.2]} 65. Bd4
{[%clk 0:00:38.4]} 65... Ke4 {[%clk 0:01:45.1]} 66. Bf6 {[%clk 0:00:38.4]} 66...
Kd3 {[%clk 0:01:46]} 67. Bd4 {[%clk 0:00:38.5]} 67... Kc4 {[%clk 0:01:46.9]} 68.
Bf6 {[%clk 0:00:38.5]} 68... Kb5 {[%clk 0:01:47.8]} 69. Bd4 {[%clk 0:00:38.6]}
69... Be6 {[%clk 0:01:48.7]} 70. Kg3 {[%clk 0:00:38.6]} 1/2-1/2

[Event "*** SCC Grand Prix: Titled Tuesday Blitz"]
[Site "Chess.com"]
[Date "2020.07.21"]
[Round "1"]
[White "joksijoksi"]
[Black "Tooweak2slow03"]
[Result "0-1"]
[WhiteElo "2343"]
[BlackElo "2686"]
[TimeControl "180+1"]
[EndTime "10:06:58 PDT"]
[Termination "Tooweak2slow03 won by resignation"]

1. d4 {[%clk 0:02:57.6]} 1... e6 {[%clk 0:02:56.3]} 2. c4 {[%clk 0:02:57.4]}
2... f6 {[%clk 0:02:56.3]} 3. Nc3 {[%clk 0:02:55.3]} 3... Bb4 {[%clk 0:02:54.9]}
4. e4 {[%clk 0:02:53.8]} 4... b6 {[%clk 0:02:52.3]} 5. Bd3 {[%clk 0:02:49]} 5...
Bb7 {[%clk 0:02:51.5]} 6. d5 {[%clk 0:02:49.5]} 6... e5 {[%clk 0:02:47]} 7. Ne2
{[%clk 0:02:41.7]} 7... Ne7 {[%clk 0:02:45.2]} 8. a3 {[%clk 0:02:41.2]} 8...
Bxc3+ {[%clk 0:02:44]} 9. bxc3 {[%clk 0:02:38.8]} 9... d6 {[%clk 0:02:42.4]} 10.
Ng3 {[%clk 0:02:38.4]} 10... O-O {[%clk 0:02:26.9]} 11. Be2 {[%clk 0:02:38.2]}
11... Nd7 {[%clk 0:02:24.3]} 12. Bg4 {[%clk 0:02:38.2]} 12... Ba6 {[%clk
0:02:20.9]} 13. Qe2 {[%clk 0:02:31.1]} 13... Nc5 {[%clk 0:02:18.9]} 14. Be3
{[%clk 0:02:31.2]} 14... Ng6 {[%clk 0:02:16.5]} 15. Bxc5 {[%clk 0:02:26.5]}
15... bxc5 {[%clk 0:02:14.6]} 16. Be6+ {[%clk 0:02:27.4]} 16... Kh8 {[%clk
0:02:13]} 17. Nh5 {[%clk 0:02:11.3]} 17... Qe7 {[%clk 0:02:09]} 18. g3 {[%clk
0:02:07.9]} 18... Rab8 {[%clk 0:01:57.5]} 19. f4 {[%clk 0:02:05.4]} 19... exf4
{[%clk 0:01:44.9]} 20. gxf4 {[%clk 0:02:06.3]} 20... f5 {[%clk 0:01:41.4]} 21.
exf5 {[%clk 0:02:02.3]} 21... Qh4+ {[%clk 0:01:40.9]} 22. Ng3 {[%clk 0:01:55.5]}
22... Nxf4 {[%clk 0:01:39.6]} 23. Qe4 {[%clk 0:01:46.3]} 23... Bxc4 {[%clk
0:01:36.3]} 24. Rb1 {[%clk 0:00:53.3]} 24... Rxb1+ {[%clk 0:01:19.1]} 25. Qxb1
{[%clk 0:00:51.6]} 25... Nd3+ {[%clk 0:01:15.3]} 26. Kd1 {[%clk 0:00:37.7]}
26... Qg4+ {[%clk 0:01:06.3]} 27. Kc2 {[%clk 0:00:34.3]} 27... Nf2 {[%clk
0:01:01.5]} 28. Qe1 {[%clk 0:00:27.1]} 28... Nxh1 {[%clk 0:00:58.1]} 29. Qxh1
{[%clk 0:00:22.6]} 29... Rb8 {[%clk 0:00:52.7]} 30. f6 {[%clk 0:00:19.5]} 30...
Qg6+ {[%clk 0:00:52.1]} 31. Bf5 {[%clk 0:00:17.6]} 31... Qxf6 {[%clk 0:00:51.6]}
32. Qe4 {[%clk 0:00:17.8]} 32... Ba2 {[%clk 0:00:50]} 33. Qf3 {[%clk 0:00:12.6]}
33... Bb1+ {[%clk 0:00:49.5]} 34. Kd2 {[%clk 0:00:10.8]} 34... Bxf5 {[%clk
0:00:49.2]} 35. Qxf5 {[%clk 0:00:11.2]} 35... Qxf5 {[%clk 0:00:49.1]} 36. Nxf5
{[%clk 0:00:12.1]} 36... Rb3 {[%clk 0:00:48.7]} 37. Ng3 {[%clk 0:00:02.9]} 37...
Rxa3 {[%clk 0:00:48.3]} 38. Nh5 {[%clk 0:00:03.8]} 38... Ra2+ {[%clk 0:00:47.9]}
39. Kd3 {[%clk 0:00:03.6]} 39... Rxh2 {[%clk 0:00:48.8]} 40. Nf4 {[%clk
0:00:04.1]} 40... a5 {[%clk 0:00:48.2]} 41. Ne6 {[%clk 0:00:04.4]} 41... a4
{[%clk 0:00:48.1]} 42. Nxc7 {[%clk 0:00:05.1]} 42... a3 {[%clk 0:00:48.3]} 43.
Nb5 {[%clk 0:00:06]} 43... a2 {[%clk 0:00:48.3]} 0-1

[Event "*** SCC Grand Prix: Titled Tuesday Blitz"]
[Site "Chess.com"]
[Date "2020.07.21"]
[Round "1"]
[White "KyrgyzFighter"]
[Black "ftorodent"]
[Result "0-1"]
[WhiteElo "2296"]
[BlackElo "2630"]
[TimeControl "180+1"]
[EndTime "10:07:01 PDT"]
[Termination "ftorodent won by resignation"]

1. c4 {[%clk 0:03:00.9]} 1... f5 {[%clk 0:02:57.6]} 2. Nc3 {[%clk 0:03:00.8]}
2... Nf6 {[%clk 0:02:57.4]} 3. e4 {[%clk 0:03:01.2]} 3... fxe4 {[%clk
0:02:50.4]} 4. d3 {[%clk 0:03:01.3]} 4... e5 {[%clk 0:02:46.2]} 5. g4 {[%clk
0:03:01]} 5... g6 {[%clk 0:02:36.5]} 6. h4 {[%clk 0:02:56.5]} 6... d6 {[%clk
0:02:29.7]} 7. g5 {[%clk 0:02:52.8]} 7... Nh5 {[%clk 0:02:29.6]} 8. Nxe4 {[%clk
0:02:43.2]} 8... Bf5 {[%clk 0:02:28.2]} 9. Be2 {[%clk 0:02:36.9]} 9... Bxe4
{[%clk 0:02:24.4]} 10. dxe4 {[%clk 0:02:37.8]} 10... Nf4 {[%clk 0:02:23.3]} 11.
Bxf4 {[%clk 0:02:37.2]} 11... exf4 {[%clk 0:02:23.3]} 12. Qd4 {[%clk 0:02:26.2]}
12... Rg8 {[%clk 0:02:23]} 13. Qd5 {[%clk 0:02:24.4]} 13... Rg7 {[%clk
0:02:22.7]} 14. Qxb7 {[%clk 0:02:13.2]} 14... Nd7 {[%clk 0:02:22.1]} 15. Qd5
{[%clk 0:02:13.2]} 15... Rb8 {[%clk 0:02:11.5]} 16. b3 {[%clk 0:02:07.6]} 16...
Ne5 {[%clk 0:02:07]} 17. Nf3 {[%clk 0:02:05]} 17... Re7 {[%clk 0:02:06.5]} 18.
Nd4 {[%clk 0:02:02.5]} 18... Qd7 {[%clk 0:01:58.2]} 19. Rd1 {[%clk 0:01:35.3]}
19... c6 {[%clk 0:01:43.3]} 20. Qa5 {[%clk 0:01:35.2]} 20... Bg7 {[%clk
0:01:42.2]} 21. h5 {[%clk 0:01:29.4]} 21... Kf7 {[%clk 0:01:36.6]} 22. f3 {[%clk
0:00:44.1]} 22... Qe8 {[%clk 0:00:54.4]} 23. Kf2 {[%clk 0:00:42.5]} 23... Rd7
{[%clk 0:00:46.6]} 24. Bf1 {[%clk 0:00:39.5]} 24... Qd8 {[%clk 0:00:35.6]} 25.
Qa3 {[%clk 0:00:30.1]} 25... Qb6 {[%clk 0:00:34.5]} 26. Bh3 {[%clk 0:00:28.9]}
26... Nxc4 {[%clk 0:00:32.7]} 27. bxc4 {[%clk 0:00:18.6]} 27... Bxd4+ {[%clk
0:00:32.5]} 28. Kg2 {[%clk 0:00:19.3]} 28... Qb2+ {[%clk 0:00:32.6]} 29. Qxb2
{[%clk 0:00:19.3]} 29... Rxb2+ {[%clk 0:00:31.8]} 30. Kf1 {[%clk 0:00:19.9]}
30... Rdb7 {[%clk 0:00:23.5]} 31. Rxd4 {[%clk 0:00:18.6]} 31... Rb1+ {[%clk
0:00:22.3]} 32. Ke2 {[%clk 0:00:14.2]} 32... Rxh1 {[%clk 0:00:21.3]} 33. Bg2
{[%clk 0:00:14.5]} 33... Rb2+ {[%clk 0:00:20.6]} 34. Rd2 {[%clk 0:00:15]} 34...
Rxd2+ {[%clk 0:00:20.4]} 35. Kxd2 {[%clk 0:00:15.9]} 35... Rh2 {[%clk
0:00:20.6]} 36. Kc3 {[%clk 0:00:16.8]} 36... Rxg2 {[%clk 0:00:20.9]} 37. Kb4
{[%clk 0:00:17.7]} 37... Rxg5 {[%clk 0:00:20.6]} 0-1

[Event "*** SCC Grand Prix: Titled Tuesday Blitz"]
[Site "Chess.com"]
[Date "2020.07.21"]
[Round "1"]
[White "manmanlai1"]
[Black "Azoulas1"]
[Result "1-0"]
[WhiteElo "2491"]
[BlackElo "2022"]
[TimeControl "180+1"]
[EndTime "10:07:03 PDT"]
[Termination "manmanlai1 won by resignation"]

1. e4 {[%clk 0:03:00.5]} 1... c5 {[%clk 0:02:59.1]} 2. Nf3 {[%clk 0:02:59.7]}
2... e6 {[%clk 0:02:59.1]} 3. d4 {[%clk 0:02:57.2]} 3... cxd4 {[%clk 0:02:58.9]}
4. Nxd4 {[%clk 0:02:58.1]} 4... Nf6 {[%clk 0:02:58.5]} 5. Nc3 {[%clk 0:02:56.9]}
5... d6 {[%clk 0:02:58.2]} 6. g4 {[%clk 0:02:53.5]} 6... h6 {[%clk 0:02:56.4]}
7. h3 {[%clk 0:02:34.7]} 7... Nc6 {[%clk 0:02:51.3]} 8. Bg2 {[%clk 0:02:28.8]}
8... Bd7 {[%clk 0:02:49.7]} 9. Be3 {[%clk 0:02:25.9]} 9... Nxd4 {[%clk
0:02:40.5]} 10. Qxd4 {[%clk 0:02:23.8]} 10... Bc6 {[%clk 0:02:39.5]} 11. O-O-O
{[%clk 0:02:24]} 11... Qc7 {[%clk 0:02:35.8]} 12. f4 {[%clk 0:02:21.6]} 12... b5
{[%clk 0:02:27.9]} 13. Rhe1 {[%clk 0:02:12.9]} 13... Nd7 {[%clk 0:02:18.5]} 14.
Bg1 {[%clk 0:01:57.8]} 14... Be7 {[%clk 0:02:08]} 15. Nd5 {[%clk 0:01:44.9]}
15... exd5 {[%clk 0:02:04.3]} 16. exd5 {[%clk 0:01:45.8]} 16... Bb7 {[%clk
0:02:03.7]} 17. Qxg7 {[%clk 0:01:44.5]} 17... Rf8 {[%clk 0:02:01.6]} 18. Qxh6
{[%clk 0:01:32.1]} 18... Rc8 {[%clk 0:01:52.7]} 19. Rd2 {[%clk 0:01:13.6]} 19...
Nc5 {[%clk 0:01:43.2]} 20. Kb1 {[%clk 0:00:55.2]} 20... Kd8 {[%clk 0:01:24.2]}
21. Rde2 {[%clk 0:00:46.1]} 21... Re8 {[%clk 0:01:22.2]} 22. Bd4 {[%clk
0:00:43]} 22... Qd7 {[%clk 0:01:12.7]} 23. Bf6 {[%clk 0:00:35.8]} 23... b4
{[%clk 0:00:45.2]} 24. Bxe7+ {[%clk 0:00:29.7]} 24... Rxe7 {[%clk 0:00:42.8]}
25. Qf6 {[%clk 0:00:27.1]} 25... Rc7 {[%clk 0:00:39.2]} 26. Rxe7 {[%clk
0:00:26.4]} 26... Qxe7 {[%clk 0:00:37.4]} 27. Qh8+ {[%clk 0:00:26.4]} 27... Kd7
{[%clk 0:00:35.1]} 28. Rxe7+ {[%clk 0:00:26.7]} 28... Kxe7 {[%clk 0:00:34.3]}
29. b3 {[%clk 0:00:25.4]} 29... Rc8 {[%clk 0:00:28]} 30. Qh4+ {[%clk 0:00:24.3]}
30... Kd7 {[%clk 0:00:26.8]} 31. g5 {[%clk 0:00:24.6]} 31... Re8 {[%clk
0:00:25.4]} 32. Qf2 {[%clk 0:00:24.3]} 32... Ba6 {[%clk 0:00:20.8]} 33. Bf3
{[%clk 0:00:23]} 33... Ne4 {[%clk 0:00:18.5]} 34. Qxa7+ {[%clk 0:00:22.5]} 34...
Kd8 {[%clk 0:00:17.3]} 35. Bxe4 {[%clk 0:00:22.4]} 35... Rxe4 {[%clk 0:00:16.3]}
36. Qxa6 {[%clk 0:00:22.1]} 1-0